Cogmind - Beta 11 X8 @@@ ROGUE MODE // 2021.11.07 @ 01:28:45 Player: Runia Result: Destroyed by 8R-AWN with 8R-AWN's Boregun Performance ------------- Evolutions (0) 0 Regions Visited (3) 600 Robots Destroyed (17) 85 Value Destroyed (339) 339 Prototype IDs (25) 500 Alien Tech Used (0) 0 Bonus (296) 296 TOTAL SCORE: 1820 Bonus ------- Aligned with FarCom 300 Friendly Fire -4 Cogmind --------- Core Integrity 0/250 Matter 487/700 Energy 91/100 System Corruption 0% Temperature Cool (0) Movement Treading (160) Location -10/Exiles Parts ------- > --- POWER (1) -------- (None) > --- PROPULSION (2) --- Light Treads Light Treads > --- UTILITY (2) ------ High-capacity Matter Pod High-capacity Matter Pod > --- WEAPON (2) ------- Light Assault Rifle > --- INVENTORY (5) ---- Large Storage Unit Grenade Launcher Peak State ------------ > --- POWER ------------ Ion Engine > --- PROPULSION ------- Light Treads Light Treads > --- UTILITY ---------- Improved Heat Sink Large Storage Unit > --- WEAPON ----------- Small Laser Light Assault Rifle > --- INVENTORY -------- Ion Engine Light Treads Light Treads Light Treads Light Treads Light Assault Rifle Light Assault Rifle Grenade Launcher Grenade Launcher Grenade Launcher [Rating: 10] Favorites ----------- Power Ion Engine Engine Ion Engine Propulsion Light Treads Treads Light Treads Leg Aluminum Leg Utility Large Storage Unit Device Improved Heat Sink Storage Large Storage Unit Weapon Light Assault Rifle Energy Gun Small Laser Ballistic Gun Light Assault Rifle Launcher Grenade Launcher Build | -11 -10 -10 -10 ------- Run | Scr Mat Min Exi Slots Evolved . | . . . . Power . | . . . . Propulsion . | . . . . Utility . | . . . . Weapon . | . . . . Parts Attached 25 | . 11 3 11 Power 2 | . 2 . . Engine 2 | . 2 . . Core . | . . . . Reactor . | . . . . Propulsion 7 | . 4 . 3 Treads 7 | . 4 . 3 Leg . | . . . . Wheel . | . . . . Hover . | . . . . Flight . | . . . . Utility 6 | . 3 . 3 Device 2 | . 2 . . Storage 4 | . 1 . 3 Processor . | . . . . Hackware . | . . . . Protection . | . . . . Artifact . | . . . . Weapon 10 | . 2 3 5 Energy Gun 3 | . 2 1 . Energy Cannon . | . . . . Ballistic Gun 5 | . . 1 4 Ballistic Cannon . | . . . . Launcher 2 | . . 1 1 Special Weapon . | . . . . Impact Weapon . | . . . . Slashing Weapon . | . . . . Piercing Weapon . | . . . . Special Melee Weapon . | . . . . Unidentified Prototypes . | . . . . Parts Lost 9 | . . . 9 Power 1 | . . . 1 Propulsion 3 | . . . 3 Utility 1 | . . . 1 Weapon 4 | . . . 4 Highest Loss Streak 6 | . . . 6 Average Slot Usage (%) 93 | . 93 100 88 Engine 13 | . 14 14 11 Treads 28 | . 28 28 28 Device 8 | . 8 14 5 Storage 14 | . 14 14 14 Energy Gun 7 | . 14 11 . Ballistic Gun 19 | . 14 15 25 Naked Turns . | . . . . Heaviest Build 209 | 11 28 30 209 Greatest Support 40 | 20 40 40 40 Greatest Overweight (x) 5 | . . . 5 Average Overweight (x) . | . . . . Largest Inventory Capacity 35 | . 15 15 35 Average Capacity 16 | . 14 15 18 Most Carried 15 | . 11 13 15 Average Carried 9 | . 4 11 11 Final Capacity 15 | 8 15 15 5 Final Carried 12 | 6 11 12 2 Class Distribution -------------------- 90% | Mutant 9% | Hauler-Mutant Dominant Class ---------------- Mutant | -10/Materials Mutant | -10/Mines Mutant | -10/Exiles Resources | -11 -10 -10 -10 ----------- Run | Scr Mat Min Exi Matter Collected 496 | 196 152 48 100 Remotely . | . . . . Salvage Created 507 | . 463 35 9 Parts 40 | . 36 4 . Haulers Intercepted 2 | . 2 . . Recyclers Shooed . | . . . . Parts Field Recycled . | . . . . Retrieved Matter . | . . . . Parts Self-Destructed . | . . . . Prevented . | . . . . Kills | -11 -10 -10 -10 ------- Run | Scr Mat Min Exi Combat Hostiles Destroyed 13 | . 9 3 1 Guns 9 | . 9 . . AOE 4 | . . 3 1 Classes Destroyed 7 | . 6 . 1 Hauler 2 | . 2 . . Mechanic 1 | . 1 . . Operator 1 | . 1 . . Watcher 1 | . 1 . . Swarmer 6 | . 3 3 . Grunt 6 | . 6 . . Assembled 1 | . . . 1 Best Kill Streak 4 | . 4 3 1 Combat Bots Only 3 | . 3 3 1 Max Kills in Single Turn 2 | . 1 2 1 Gunslinging . | . . . . Exploded 2 | . . 2 1 Melee . | . . . . Uniques/NPCs Destroyed . | . . . . Combat | -11 -10 -10 -10 -------- Run | Scr Mat Min Exi Damage Taken 2018 | . 375 55 1588 Core 257 | . 48 . 209 Absorbed by Shields . | . . . . Core Remaining (%) 100 | 100 . . . Volleys Fired 119 | . 53 5 61 Largest 2 | . 2 2 2 Hottest 60 | . 60 60 40 Shots Fired 221 | . 103 8 110 Gun 217 | . 103 6 108 Cannon . | . . . . Launcher 4 | . . 2 2 Special . | . . . . Kinetic 164 | . 53 3 108 Thermal 53 | . 50 3 . Explosive 4 | . . 2 2 Electromagnetic . | . . . . Robot Hit Streak 16 | . 11 3 16 Robot Miss Streak 8 | . 6 7 8 Penetration Max . | . . . . Secondary Targets 1 | . 1 . . Max Gunslinging Chain 1 | . 1 . . Shots Hit Robots 152 | . 64 1 87 Core Hits 55 | . 33 4 18 Critical Kills . | . . . . Critical Parts Destroyed . | . . . . Critical Strikes . | . . . . Melee Attacks . | . . . . Impact . | . . . . Slashing . | . . . . Piercing . | . . . . Sneak Attacks . | . . . . Combat Hostiles . | . . . . Follow-up Attacks . | . . . . Damage Inflicted 1407 | . 633 74 700 Guns 1332 | . 633 9 690 Cannons . | . . . . Explosions 75 | . . 65 10 Melee . | . . . . Ramming . | . . . . Kinetic 989 | . 290 9 690 Thermal 343 | . 343 . . Explosive 75 | . . 65 10 Electromagnetic . | . . . . Impact . | . . . . Slashing . | . . . . Piercing . | . . . . Highest Corruption . | . . . . Average Corruption . | . . . . Corruption Purged . | . . . . Overload Shots . | . . . . Overflow Damage . | . . . . Projectiles . | . . . . Explosions . | . . . . Melee . | . . . . Knockbacks . | . . . . Impact . | . . . . Kinetic . | . . . . Secondary . | . . . . Self-Inflicted Damage 25 | . . . 25 Shots 1 | . . . 1 Rammed . | . . . . Targets Rammed . | . . . . Kicked . | . . . . Crushed . | . . . . Highest Temperature 73 | . 73 . . Average Temperature 28 | . 28 . . Received Heat Transfer 129 | . 129 . . Siege Activations . | . . . . Robots Corrupted . | . . . . Combat Hostiles . | . . . . Parts Fried . | . . . . Impact Corruptions . | . . . . Robots Melted . | . . . . Combat Hostiles . | . . . . Parts Melted . | . . . . Heat Transferred 775 | . 775 . . Parts Sabotaged . | . . . . Parts Stolen . | . . . . Parts Stripped . | . . . . Power Chain Reactions . | . . . . Missiles Intercepted . | . . . . Alert | -11 -10 -10 -10 ------- Run | Scr Mat Min Exi Peak Influence 331 | . 331 81 . Initial 73 | . . 73 . Average 105 | . 152 57 . Maximum Alert Level 1 | . 1 . . Low Security (%) 90 | . 81 100 . Level 1 9 | . 18 . . Level 2 . | . . . . Level 3 . | . . . . Level 4 . | . . . . Level 5 . | . . . . High Security . | . . . . Max Security . | . . . . Squads Dispatched 3 | . 3 . . Investigation 1 | . 1 . . Extermination . | . . . . Reinforcement 2 | . 2 . . Assault . | . . . . Garrison . | . . . . Intercept . | . . . . Construction Impeded . | . . . . Haulers Reinforced . | . . . . Active Scanning Responses . | . . . . Cargo Convoy Interrupts . | . . . . Stealth | -11 -10 -10 -10 --------- Run | Scr Mat Min Exi Distress Signals 1 | . 1 . . Communications Jammed . | . . . . Distress Signals . | . . . . Times Spotted 27 | . 21 3 3 Peak Tracking Total 8 | . 4 3 8 Tactical Retreats 1 | . 1 . . Traps | -11 -10 -10 -10 ------- Run | Scr Mat Min Exi Traps Triggered . | . . . . Indirectly . | . . . . Trap Hack Attempts . | . . . . Triggered . | . . . . Disarmed . | . . . . Reprogrammed . | . . . . Reused . | . . . . Traps Extracted . | . . . . Installed . | . . . . Triggered . | . . . . Exploded 3 | . . . 3 Machines | -11 -10 -10 -10 ---------- Run | Scr Mat Min Exi Machines Disabled 4 | . . . 4 Max in Single Turn 2 | . . . 2 Machines Sabotaged . | . . . . Garrisons Compromised . | . . . . Overloaded Fab Kills . | . . . . Hacking | -11 -10 -10 -10 --------- Run | Scr Mat Min Exi Machines Accessed 5 | . 3 . 2 Terminals 2 | . 2 . . Fabricators . | . . . . Repair Stations . | . . . . Recycling Units 1 | . 1 . . Scanalyzers . | . . . . Garrison Access . | . . . . Total Hacks 12 | . 10 . 2 Successful 8 | . 6 . 2 Failed 4 | . 4 . . Catastrophic . | . . . . Database Lockouts . | . . . . Manual 3 | . 2 . 1 Terminals 9 | . 9 . . Fabricators . | . . . . Repair Stations . | . . . . Recycling Units 1 | . 1 . . Scanalyzers . | . . . . Garrison Access . | . . . . Terminal Hacks 7 | . 5 . 2 Record 1 | . . . 1 Prototype ID Bank 1 | . 1 . . Locate Traps 2 | . 2 . . Hauler Manifests 1 | . 1 . . Zone Layout 1 | . 1 . . EX-Prototype ID Bank 1 | . . . 1 Fabricator Hacks . | . . . . Repair Station Hacks . | . . . . Recycling Unit Hacks . | . . . . Scanalyzer . | . . . . Garrison Access Hacks . | . . . . Unauthorized Hacks 1 | . 1 . . Terminals . | . . . . Fabricators . | . . . . Repair Stations . | . . . . Recycling Units 1 | . 1 . . Tunnel 1 | . 1 . . Scanalyzers . | . . . . Garrison Access . | . . . . Data Cores Recovered . | . . . . Used . | . . . . Hacking Detections 2 | . 2 . . Full Trace Events . | . . . . Feedback Events . | . . . . Feedback Blocked . | . . . . Robot Schematics Acquired . | . . . . Robots Built . | . . . . Authchips . | . . . . Time . | . . . . Total Robot Build Rating . | . . . . Part Schematics Acquired . | . . . . Parts Built . | . . . . Authchips . | . . . . Time . | . . . . Total Part Build Rating . | . . . . Parts Repaired . | . . . . Time . | . . . . Parts Recycled . | . . . . Recycled Matter . | . . . . Retrieved Matter . | . . . . Retrieved Components . | . . . . Parts Scanalyzed . | . . . . Part Schematics Acquired . | . . . . Parts Damaged . | . . . . Bothacking | -11 -10 -10 -10 ------------ Run | Scr Mat Min Exi Used RIF Installer . | . . . . Robots Hacked . | . . . . Non-combat . | . . . . Combat . | . . . . Robot Hacks Applied . | . . . . Relay Couplers Released . | . . . . Robots Rewired . | . . . . Allies Hacked . | . . . . Hacks Repelled . | . . . . Allies | -11 -10 -10 -10 -------- Run | Scr Mat Min Exi Total Allies 3 | . . 3 . Largest Group 3 | . . 3 3 Highest-Rated Group 40 | . . 40 40 Highest-Rated Ally 16 | . . 16 16 Total Orders 1 | . . . 1 STAY 1 | . . . 1 Ally Attacks 11 | . . . 11 Total Damage 97 | . . . 97 Kills 1 | . . . 1 Allies Corrupted . | . . . . Allies Melted . | . . . . Intel | -11 -10 -10 -10 ------- Run | Scr Mat Min Exi Robot Analysis Total . | . . . . Derelict Logs Recovered 3 | . . 3 . Drone Launches . | . . . . Drone Recoveries . | . . . . Exploration | -11 -10 -10 -10 ------------- Run | Scr Mat Min Exi Turns Passed 2425 | . 670 655 1100 Spaces Moved 1233 | 1 291 394 547 Core . | . . . . Treads 1232 | . 291 394 547 Legs 1 | 1 . . . Wheels . | . . . . Hover . | . . . . Flight . | . . . . Fastest Speed 120 | 120 160 160 160 Average Speed 163 | 120 160 160 168 Slowest Speed 560 | 120 160 160 560 Overloaded Moves . | . . . . Propulsion Burnouts . | . . . . Robots Hopped . | . . . . Cave-ins Triggered . | . . . . Exploration Rate (%) 53 | 1 62 83 68 Regions Visited 3 Branch Regions 2 Pre-discovered Areas 3 | . 1 1 1 Known Exits Taken . | . . . . Unknown Exits Taken 3 | 1 1 1 . Scrap Searched 2 | . . 2 . Spaces Dug . | . . . . Terrain Destroyed 15 | . . 10 5 Melee . | . . . . Projectile . | . . . . AOE 15 | . . 10 5 Terrain Rammed . | . . . . Walls Destroyed . | . . . . Machines Disabled . | . . . . Actions | -11 -10 -10 -10 --------- Run | Scr Mat Min Exi Total 1458 | . 405 410 643 Wait 30 | . 24 6 . Move 1230 | . 290 393 547 Hop . | . . . . Pick Up 31 | . 14 2 15 Fast Attach 2 | . 2 . . Attach 11 | . 2 . 9 Detach . | . . . . Swap 12 | . 7 3 2 Drop 23 | . 13 1 9 Fire 119 | . 53 5 61 Melee . | . . . . Ram . | . . . . Kick . | . . . . Crush . | . . . . Escape Stasis . | . . . . Rewire . | . . . . Trap . | . . . . Miscellaneous . | . . . . Route ------- -11/Scrapyard -10/Materials (discovered 2 exits: [*Mat] / [*Min]) -10/Mines (discovered 3 exits: [*Mat x2] / *Exi) -10/Exiles History --------- Turn | Location | Event 1 | -11/Scrapyard | Discovered new exit (range 0) 1 | -11/Scrapyard | Entered Materials 162 | -10/Materials | Discovered new exit (range 16) 306 | -10/Materials | Build established: Mutant 428 | -10/Materials | Discovered new exit (range 15) 671 | -10/Materials | Entered Mines 783 | -10/Mines | Learned 4 Materials zone layouts 834 | -10/Mines | Assisted by bots powering up and referring to "LRC-V3" 1029 | -10/Mines | Discovered new exit (range 14) 1216 | -10/Mines | Discovered new exit (range 9) 1225 | -10/Mines | Learned location of Zion (-7) 1313 | -10/Mines | Deemed a non-threat by the Exiles lab entrance 1313 | -10/Mines | Discovered new exit (range 5) 1326 | -10/Mines | Entered Exiles 1326 | -10/Exiles | Accompanied by 3 allies 1370 | -10/Exiles | Met 8R-AWN 1392 | -10/Exiles | Met EX-HEX 1454 | -10/Exiles | Met EX-DEC 1499 | -10/Exiles | Met EX-BIN 1522 | -10/Exiles | Aligned with FarCom system 1523 | -10/Exiles | Given EX-Vault access code 1560 | -10/Exiles | Opened EX-Vault 1598 | -10/Exiles | Warned to stay clear of 0b10 Research branches 2138 | -10/Exiles | Attacked by the Exiles 2326 | -10/Exiles | Core integrity fell below 50% 2352 | -10/Exiles | Lost 6 parts (1p2n3w) 2393 | -10/Exiles | Core integrity fell below 20% 2426 | -10/Exiles | Destroyed by 8R-AWN with 8R-AWN's Boregun Last Messages --------------- 02375_ Penetrated by HV Slug. 02375_ HV Slug penetrates Wall. 02375_ HV Slug penetrates Earth. 02379_ Penetrated by HV Slug. 02384_ Critical hit (Destroy). 02384_ Lgt. Treads destroyed. 02388_ Penetrated by HV Slug. 02396_ Critical hit (Destroy). 02396_ Lgt. Assault Rifle destroyed. 02396_ Penetrated by HV Slug. 02405_ HV Slug penetrates Wall. 02409_ Penetrated by HV Slug. 02413_ Humpback destroyed. 02418_ Penetrated by HV Slug. 02418_ HV Slug penetrates Earth. 02422_ Penetrated by HV Slug. 02422_ HV Slug penetrates Wall. 02422_ Penetrated by HV Slug. 02422_ HV Slug penetrates Wall. 02426_ Penetrated by HV Slug. Map ----- +----------------------------------------------------+ | ?????????????????????????????????????????????????? | | ?????????????????????????????????????????????????? | | ?????????????????????????????????????????????????? | | ?????????????????????????????????????????????????? | | ?????????????????????????????????????????????????? | | ?????????????????????????????????????????????????? | | ?????????????????????????????????????????????????? | | ?????????????????????????????????????????????????? | | ?????????????????????????????????????????????????? | | ?????????????????????????????????????????????????? | | ?????????????????????????????????????????????????? | | ??????????????????? ?????????????????????????????? | | ??????????????????? ?????????????#######???????? | | ?????????????????? ######???????#!!! "#???????? | | ?????????????????? #""#??????# "#???????? | | ?????????????????? ??????# "#???????? | | ??????????????????#" #????## ""#???????? | | ???????????????????" #####" ""#???????? | | ????????????????????# ##" ""#???????? | | ?????????????????????# #"" #?????????? | | ????????????????????????# #?????????? | | ???????????????????????????# ##????????? | | ???????????????????????????## "##???????? | | ?????????????????????######## ;##??????? | | ?????????????????????# ! """" % ##?????? | | ?????????????????????#!!*@ !g ## ######? | | ?????????????????????#! ] ####" """## | | ?????????????????????#! ##?#" | | ?????????????????????# ! ;;##??#"# | | ???????????????????# ;#;;;;#;#; #??#### * | | ???????????????????### ### # ###?????### | | ?????????????????????###?# #? ##?????????### | | ????????????????????????# #? ##????????????## | | ???????????????????????# #?? ???????????????## | | ??????????????????????# #?? ????????????????##" | | ?????????????????????# #???#??????????????????#""" | | ????????????????????? #??????????????????????##" | | ???????????????????? ????????????????????????#"" | | ??????????????????? ?????????????????????????#""" | | ????????????????????????????????????????????#""" | | ????????????????????????????????????????????#""" | | ????????????????????????????????????????????#"" | | ????????????????????????????????????????????#""" | | ????????????????????????????????????????????#"" | | ?????????????????????????????????????????????#"" | | ?????????????????????????????????????????????#"""" | | ?????????????????????????????????????????????## | | ??????????????????????????????????????????????#" | | ??????????????????????????????????????????????#""" | | ??????????????????????????????????????????????#"" | +----------------------------------------------------+ Best States ------------- Heat Dissipation 39 Energy Generation 10 Energy Capacity 250 Matter Stores 487 Matter Capacity 700 Sight Range 16 Terrain Scan Density 10 Evasion (%) 40 Recoil Reduction 2 Item Schematics ----------------- None Robot Schematics ------------------ None Fabricated ------------ Nothing Alien Tech Used ----------------- None Achievements -------------- None Challenges ------------ None Game ------ Seed MiniActuatorRailgun Manual? 0 Play Time 00:11:55 Cumulative 444.5 hours Start 2021.11.07 @ 01:18:42 End 2021.11.07 @ 01:28:45 Sessions 1 Manual Loads 0 Difficulty Rogue Special Mode None Game No. 443 Rogue 443 Adventurer 0 Explorer 0 Win Type - Total 8 Types 7/0/0/1/0/0/0/0/0 Lore% 80 Gallery% 92 Achievement% 69 Wizard Run 0 Options --------- ASCII 0 Keyboard 0 Movement Mouse Keybinds 1 Fullscreen 2 Font 24/Smallcaps Map View 76x50 Tactical HUD 1 Map Filters NONE Filters NONE Steam 1 RUN: 6e65c46a-7222-43eb-81c3-658f6d235f98